Workbook

Sheet Pasiūlymas
A2: PIKIMO SĄLYGŲ PRIEDAS "PASIŪLYMO FORMA"
A4: DEZINFEKCINĖS MEDŽIAGOS IR PRIEMONĖS
A6: Kam: | B6: LSMU Kauno ligoninė
A8: Data: | B8: 2022-01-28
A9: Nr.: | B9: 579206
A10: Vieta: | B10: Kaunas
A12: Tiekėjo pavadinimas / Ūkio subjektų grupės nariai: | C12: L.R.Tamulio firma „Meditalika“
A13: Tiekėjo kodas (-ai): | C13: 134565744
A14: Tiekėjo adresas (-ai): | C14: Radvilų Dvaro g.4, LT-48320 Kaunas
A15: Tiekėjo PVM mokėtojo kodas(-ai): | C15: LT345657415
A16: Tiekėjo / Ūkio subjektų grupės atsakingo partnerio sąskaitos numeris, banko pavadinimas ir banko kodas (-ai): | C16: LT09 7044 0600 0290 5474, AB SEB Bankas, banko kodas 70440
A17: Asmens atsakingo už pasiūlymą vardas, pavardė: | C17: Rita Rutkevičienė
A18: Asmens atsakingo už pasiūlymą telefono numeris, el. pašto adresas: | C18: (8 610) 17000, rita@meditalika.lt
A19: Tiekėjo / Ūkio subjektų grupės, laimėjimo atveju, pasirašančio sutartį asmens vardas, pavardė, pareigos: | C19: Komercijos direktorė Rita Rutkevičienė
A20: Tiekėjo / Ūkio subjektų grupės, laimėjimo atveju, už sutarties vykdymą atsakingo asmens vardas, pavardė, telefono numeris, elektroninio pašto adresas: | C20: Rasa Andronavičienė; (8 37) 22 22 23, info@meditalika.lt
A21: (1) Tiekėjo / Ūkio subjektų grupės narių, (2) ūkio subjektų, kurių pajėgumais remiamasi, ir (3) jei pašalinimo pagrindai taikomi visiems subtiekėjams - subtiekėjų, kolegialaus priežiūros organo (Stebėtojų tarybos) ir (ar) kolegialaus valdymo organo (Valdybos) narių sąrašas (jei sudaryta) ir (ar) asmuo, kuriam suteikti VPĮ 46 str. 2 d. 2 p. numatyti įgaliojimai | C21: - | G21: =IF((SUMPRODUCT(--(C21=""))>0), "Privaloma užpildyti, kai taikomi pašalinimo pagrindai", "") -> 
A23: Tiekėjo patvirtinimai:
A24: 1. Šiuo pasiūlymu pažymime, kad sutinkame su visomi pirkimo sąlygomis, nustatytomis:
A25: 1.1. viešojo pirkimo dokumentuose
A26: 1.2. kituose pirkimo dokumentuose (jų paaiškinimuose, papildymuose).
A27: 2. Patvirtiname, kad informacija ir duomenys, pateikti pasiūlyme, yra teisingi ir apima viską, ko reikia tinkamam sutarties įvykdymui
A28: 3. Patvirtiname, kad jei pasiūlyme nenurodyti kolegialaus priežiūros/valdymo organų nariai, šie organai juridiniuose asmenyse nėra sudaryti (taikoma, kai pirkimo dokumentuose nustatyti pašalinimo pagrindai).
A29: 4. Pasiūlymas galioja iki termino, nustatyto pirkimo dokumentuose.
A30: 5. Tais atvejais, kai pagal galiojančius teisės aktus tiekėjui nereikia mokėti PVM, jis nurodo priežastis, dėl kurių PVM nemoka:
A32: 1. DALIS | B32: PRIEMONĖ PAVIRŠIŲ VALYMUI IR DEZINFEKCIJAI SU CHLORO JUNGINIAIS
A34: Tiekėjo pasiūlymas:
A35: Nr. | B35: Pavadinimas | C35: Kiekis | D35: Mato vienetas | E35: Įkainis be PVM, Eur | F35: Suma be PVM, Eur | G35: Siūlomos prekės, pavadinimas, gamintojas | H35: Tiekėjo siūlomi parametrai ir parametrą pagrindžiančio dokumento puslapis
A36: 1. | B36: Priemonė paviršių valymui ir dezinfekcijai su chloro junginiais
A37: 1.1. | B37: Priemonė paviršių valymui ir dezinfekcijai su chloro junginiais | C37: 500000 | D37: vnt. | E37: 0.045 | F37: =IF(ISBLANK(E37),"", PRODUCT(C37,E37)) -> 22500 | G37: Chlor-Clean dez. priemonė (200 tab.), Guest Medical Ltd., Didžioji Britanija
A38: 1.1.1. | B38: Veiklioji medžiaga – chloro junginiai. | H38: Veiklioji medžiaga – chloro junginiai.
A39: 1.1.2. | B39: Veikia bakterijas, grybelius, virusus, sporas. | H39: Veikia bakterijas, grybelius, virusus, sporas.
A40: 1.1.3. | B40: Tinka sveikatos priežiūros įstaigoje įvairių paviršių valymui ir dezinfekcijai bei maisto bloke. | H40: Tinka sveikatos priežiūros įstaigoje įvairių paviršių valymui ir dezinfekcijai bei maisto bloke.
A41: 1.1.4. | B41: Nereikia nuskalauti (išskyrus paviršius, kurie liesis su maistu). | H41: Nereikia nuskalauti (išskyrus paviršius, kurie liesis su maistu).
A42: 1.1.5. | B42: Forma - tabletės. | H42: Forma - tabletės.
A43: 1.1.6. | B43: Vienoje tabletėje nuo 1 iki 5 gramų aktyvaus chloro. | H43: Vienoje tabletėje1 gramas aktyvaus chloro.
A44: 1.1.7. | B44: Ekspozicija iki 15 min. | H44: Ekspozicija iki 15 min.
A45: 1.1.8. | B45: 2 ir 4 tipo biocidas. | H45: 2 ir 4 tipo biocidas.
A46: 1.1.9. | B46: Prireikus pateikti lipnias laminuotas etiketes darbinio tirpalo gaminimui ir ženklinimui. | H46: Prireikus pateiksime lipnias laminuotas etiketes darbinio tirpalo gaminimui ir ženklinimui.
A47: 1.1.10. | B47: Pateikti lietuvių kalba: priemonės aprašymą ir/ar naudojimo instrukciją, priemonės biocido autorizacijos liudijimą, saugos duomenų lapus. | H47: Psl. Nr. 7-16
E48: Suma be PVM | F48: =IF((COUNT(C37:C47)<>COUNT(F37:F47)),"", SUM(F37:F47)) -> 22500 | G48: =IF((COUNT(C37:C47)<>COUNT(F37:F47)),"Neužpildytos visų objektų kainos", "") -> 
E49: PVM suma | F49: 4725
E50: Suma su PVM | F50: =IF(ISBLANK(F49), "", SUM(F48:F49)) -> 27225 | G50: Dalies biudžetas su PVM: 60500 Eur
A54: 14. DALIS | B54: PRIEMONĖS ENDOSKOPŲ VALYMUI IR DEZINFEKCIJAI RANKINIU BŪDU
A56: Tiekėjo pasiūlymas:
A57: Nr. | B57: Pavadinimas | C57: Kiekis | D57: Mato vienetas | E57: Įkainis be PVM, Eur | F57: Suma be PVM, Eur | G57: Siūlomos prekės, pavadinimas, gamintojas | H57: Tiekėjo siūlomi parametrai ir parametrą pagrindžiančio dokumento puslapis
A58: 14. | B58: Priemonės endoskopų valymui ir dezinfekcijai rankiniu būdu
A59: 14.1. | B59: Priemonė lanksčių endoskopų aukšto lygio dezinfekcijai | C59: 400 | D59: kg | E59: 12 | F59: =IF(ISBLANK(E59),"", PRODUCT(C59,E59)) -> 4800 | G59: Innosept POWDER 1,5kg., Prisman GmbH, Vokietija
A60: 14.1.1. | B60: Veiklioji medžiaga: perkarbonatas. | H60: Veiklioji medžiaga: perkarbonatas.
A61: 14.1.2. | B61: Veikia bakterijas, mikobakterijas, virusus, sporas. | H61: Veikia bakterijas, mikobakterijas, virusus, sporas.
A62: 14.1.3. | B62: Koncentracija iki 2 %, ekspozicija iki 15 min. | H62: Koncentracija iki 2 %, ekspozicija iki 15 min.
A63: 14.1.4. | B63: Forma – milteliai/granulės. | H63: Forma – milteliai/granulės.
A64: 14.1.5. | B64: Pakuotė iki 6 kg, komplekte su dozavimo šaukšteliu. | H64: Pakuotė iki 1,5 kg, komplekte su dozavimo šaukšteliu.
A65: 14.1.6. | B65: Tinka lanksčių endoskopų “Olympus”, “Pentax”, “Karl Storz” dezinfekavimui. | H65: Tinka lanksčių endoskopų “Olympus”, “Pentax”, “Karl Storz” dezinfekavimui.
A66: 14.1.7. | B66: Pateikti lietuvių kalba: priemonės aprašymą ir/ar naudojimo instrukciją, saugos duomenų lapus, CE sertifikato arba EB atitikties deklaracijos kopiją, kad priemonė yra ženklinta CE pagal medicinos prietaisų (priemonių) saugos techninį reglamentą. | H66: Psl. Nr. 102-109; 115-121
A67: 14.2. | B67: Valomasis koncentratas | C67: 850 | D67: L | E67: 9 | F67: =IF(ISBLANK(E67),"", PRODUCT(C67,E67)) -> 7650 | G67: Instru Zym (2 ltr), Laboratorium Dr.Deppe, Vokietija
A68: 14.2.1. | B68: Medicinos instrumentų ir endoskopų plovimo priemonė enzimų pagrindu. | H68: Medicinos instrumentų ir endoskopų plovimo priemonė enzimų pagrindu.
A69: 14.2.2. | B69: Koncentracija iki 3%, ekspozicijos laikas iki 15 min. | H69: Koncentracija iki 3%, ekspozicijos laikas iki 15 min.
A70: 14.2.3. | B70: Suderinama su aukšto lygio dezinfekantu perkarbonato pagrindu. | H70: Suderinama su aukšto lygio dezinfekantu perkarbonato pagrindu.
A71: 14.2.4. | B71: Darbinio tirpalo pH neutralus. | H71: Darbinio tirpalo pH neutralus.
A72: 14.2.5. | B72: Pakuotė iki 2 litrų. | H72: Pakuotė 2litrai
A73: 14.2.6. | B73: Pateikti lietuvių kalba: priemonės aprašymą ir/ar naudojimo instrukciją, saugos duomenų lapus, CE sertifikato arba EB atitikties deklaracijos kopiją, kad priemonė yra ženklinta CE pagal medicinos prietaisų (priemonių) saugos techninį reglamentą. | H73: Psl. Nr. 17-18; 25-26; 95-101
A74: 14.3. | B74: Testinės juostelės | C74: 850 | D74: vnt. | E74: 1 | F74: =IF(ISBLANK(E74),"", PRODUCT(C74,E74)) -> 850 | G74: Quantofix Peroxide indikatorius, 1 vnt, Prisman GmbH, Vokietija
A75: 14.3.1. | B75: Skirtos aukšto lygio dezinfekanto tirpalo veiksmingumui nustatyti. | H75: Skirtos aukšto lygio dezinfekanto tirpalo veiksmingumui nustatyti.
A76: 14.3.2. | B76: Pateikti kaip priedą prie perkamų priemonių. | H76: Pateiksime kaip priedą prie perkamų priemonių.
A77: 14.3.3. | B77: Pateikti lietuvių kalba: priemonės aprašymą ir/ar naudojimo instrukciją. | H77: Psl. Nr. 122
E78: Suma be PVM | F78: =IF((COUNT(C59:C77)<>COUNT(F59:F77)),"", SUM(F59:F77)) -> 13300 | G78: =IF((COUNT(C59:C77)<>COUNT(F59:F77)),"Neužpildytos visų objektų kainos", "") -> 
E79: PVM suma | F79: 801
E80: Suma su PVM | F80: =IF(ISBLANK(F79), "", SUM(F78:F79)) -> 14101 | G80: Dalies biudžetas su PVM: 32549 Eur
A83: 21. DALIS | B83: RINKINYS APLINKOS PAVIRŠIŲ VALYMO KOKYBĖS KONTROLEI
A85: Tiekėjo pasiūlymas:
A86: Nr. | B86: Pavadinimas | C86: Kiekis | D86: Mato vienetas | E86: Įkainis be PVM, Eur | F86: Suma be PVM, Eur | G86: Siūlomos prekės, pavadinimas, gamintojas | H86: Tiekėjo siūlomi parametrai ir parametrą pagrindžiančio dokumento puslapis
A87: 21. | B87: Rinkinys aplinkos paviršių valymo kokybės kontrolei
A88: 21.1. | B88: Rinkinys aplinkos paviršių valymo kokybės kontrolei | C88: 7 | D88: vnt. | E88: 65 | F88: =IF(ISBLANK(E88),"", PRODUCT(C88,E88)) -> 455 | G88: Higienos patikros rinkinys, 1 vnt., L.R.Tamulio firma „Meditalika“
A89: 21.1.1. | B89: Rinkinį sudaro: spaudas su žodžiu „Kontrolė“ ar kitu lygiaverčiu žodžiu, liuminisencinio rašalo indelis ne mažiau 20 ml., UV šviesos prožektorius, prožektoriaus veikimui reikalingi elementai. | H89: Rinkinį sudaro: spaudas su žodžiu „Kontrolė“, liuminisencinio rašalo indelis 50 ml., UV šviesos prožektorius, prožektoriaus veikimui reikalingi elementai.
A90: 21.1.2. | B90: Spaudas gali būti dedamas ant visų valymui, drėgmei atsparių paviršių. | H90: Spaudas gali būti dedamas ant visų valymui, drėgmei atsparių paviršių. Psl. Nr. 169
E91: Suma be PVM | F91: =IF((COUNT(C88:C90)<>COUNT(F88:F90)),"", SUM(F88:F90)) -> 455 | G91: =IF((COUNT(C88:C90)<>COUNT(F88:F90)),"Neužpildytos visų objektų kainos", "") -> 
E92: PVM suma | F92: 95.55
E93: Suma su PVM | F93: =IF(ISBLANK(F92), "", SUM(F91:F92)) -> 550.55 | G93: Dalies biudžetas su PVM: 550,55 Eur
A97: 22. DALIS | B97: RINKINYS RANKŲ APRUOŠIMO KOKYBĖS KONTROLEI
A99: Tiekėjo pasiūlymas:
A100: Nr. | B100: Pavadinimas | C100: Kiekis | D100: Mato vienetas | E100: Įkainis be PVM, Eur | F100: Suma be PVM, Eur | G100: Siūlomos prekės, pavadinimas, gamintojas | H100: Tiekėjo siūlomi parametrai ir parametrą pagrindžiančio dokumento puslapis
A101: 22. | B101: Rinkinys rankų apruošimo kokybės kontrolei
A102: 22.1. | B102: Rinkinys rankų apruošimo kokybės kontrolei | C102: 7 | D102: vnt. | E102: 65 | F102: =IF(ISBLANK(E102),"", PRODUCT(C102,E102)) -> 455 | G102: Higienos patikros rinkinys, 1 vnt., L.R.Tamulio firma „Meditalika“, Psl. Nr. 170
A103: 22.1.1. | B103: Rinkinį sudaro: UV šviesos prožektorius, rankų antiseptikas ne mažiau 50 ml talpos, prožektoriaus veikimui reikalingi elementai ir (jeigu yra) kitos kontrolei atlikti būtinos priemonės. | H103: Rinkinį sudaro: UV šviesos prožektorius, rankų antiseptikas ne mažiau 50 ml talpos, prožektoriaus veikimui reikalingi elementai ir (jeigu yra) kitos kontrolei atlikti būtinos priemonės.
E104: Suma be PVM | F104: =IF((COUNT(C102:C103)<>COUNT(F102:F103)),"", SUM(F102:F103)) -> 455 | G104: =IF((COUNT(C102:C103)<>COUNT(F102:F103)),"Neužpildytos visų objektų kainos", "") -> 
E105: PVM suma | F105: 95.55
E106: Suma su PVM | F106: =IF(ISBLANK(F105), "", SUM(F104:F105)) -> 550.55 | G106: Dalies biudžetas su PVM: 550,55 Eur
A111: 28. DALIS | B111: KREPUOTAS POPIERIUS SUNKIŲ STERILIZUOJAMŲ MEDICININIŲ GAMINIŲ PAKAVIMUI
A113: Tiekėjo pasiūlymas:
A114: Nr. | B114: Pavadinimas | C114: Kiekis | D114: Mato vienetas | E114: Įkainis be PVM, Eur | F114: Suma be PVM, Eur | G114: Siūlomos prekės, pavadinimas, gamintojas | H114: Tiekėjo siūlomi parametrai ir parametrą pagrindžiančio dokumento puslapis
A115: 28. | B115: Krepuotas popierius sunkių sterilizuojamų medicininių gaminių pakavimui
A116: 28.1. | B116: 100 cm x 100 cm ( ± 1 cm) | C116: 25000 | D116: vnt. | E116: 0.85 | F116: =IF(ISBLANK(E116),"", PRODUCT(C116,E116)) -> 21250 | G116: Med. krepinis (sunkiems paketams 60g/67g) 100x100 cm, vnt, Vereinighte Papierwarenfabriken GmbH, Vokietija
A117: 28.1.1. | B117: Pakavimo medžiaga ypač sunkiems paketams (pvz. ortopediniams rinkiniams) pakuoti. | H117: Pakavimo medžiaga ypač sunkiems paketams (pvz. ortopediniams rinkiniams) pakuoti.
A118: 28.1.2. | B118: Sukarpyta lakštais. | H118: Sukarpyta lakštais.
A119: 28.1.3. | B119: Komplektuojama vienoje pakuotėje po 2 skirtingų spalvų lapus. | H119: Komplektuojama vienoje pakuotėje po 2 skirtingų spalvų lapus.
A120: 28.1.4. | B120: Sudėtis: vidinis lapas – neaustinis pluoštas iš celiuliozės, pastiprintomis sintetikos skaidulomis (svoris ne mažiau 67g/m²), išorinis lapas – sintetinis pluoštas (SMS) (svoris ne mažiau 50g/m²). | H120: Sudėtis: vidinis lapas – neaustinis pluoštas iš celiuliozės, pastiprintomis sintetikos skaidulomis (svoris 67g/m²), išorinis lapas – sintetinis pluoštas (SMS) (svoris 60g/m²).
A121: 28.1.5. | B121: Atitinka standartų EN 868-2, ISO 11607-1 ir medicinos prietaisų (priemonių) saugos techninio reglamento reikalavimus. | H121: Atitinka standartų EN 868-2, ISO 11607-1 ir medicinos prietaisų (priemonių) saugos techninio reglamento reikalavimus.
A122: 28.1.6. | B122: Spalva – vidinio ir išorinio lapo spalva turi skirtis. | H122: Spalva – vidinio ir išorinio lapo spalva skiriasi. Psl.Nr. 215-217
A123: 28.2. | B123: 120 cm x 120 cm ( ± 1 cm) | C123: 25000 | D123: vnt. | E123: 1.2 | F123: =IF(ISBLANK(E123),"", PRODUCT(C123,E123)) -> 30000 | G123: Med. krepinis (sunkiems paketams 60g/67g) 120x120 cm, vnt, Vereinighte Papierwarenfabriken GmbH, Vokietija
A124: 28.2.1. | B124: Pakavimo medžiaga ypač sunkiems paketams (pvz. ortopediniams rinkiniams) pakuoti. | H124: Pakavimo medžiaga ypač sunkiems paketams (pvz. ortopediniams rinkiniams) pakuoti.
A125: 28.2.2. | B125: Sukarpyta lakštais. | H125: Sukarpyta lakštais.
A126: 28.2.3. | B126: Komplektuojama vienoje pakuotėje po 2 skirtingų spalvų lapus. | H126: Komplektuojama vienoje pakuotėje po 2 skirtingų spalvų lapus.
A127: 28.2.4. | B127: Sudėtis: vidinis lapas – neaustinis pluoštas iš celiuliozės, pastiprintomis sintetikos skaidulomis (svoris ne mažiau 67g/m²), išorinis lapas – sintetinis pluoštas (SMS) (svoris ne mažiau 50g/m²). | H127: Sudėtis: vidinis lapas – neaustinis pluoštas iš celiuliozės, pastiprintomis sintetikos skaidulomis (svoris 67g/m²), išorinis lapas – sintetinis pluoštas (SMS) (svoris 60g/m²).
A128: 28.2.5. | B128: Atitinka standartų EN 868-2, ISO 11607-1 ir medicinos prietaisų (priemonių) saugos techninio reglamento reikalavimus. | H128: Atitinka standartų EN 868-2, ISO 11607-1 ir medicinos prietaisų (priemonių) saugos techninio reglamento reikalavimus.
A129: 28.2.6. | B129: Spalva – vidinio ir išorinio lapo spalva turi skirtis. | H129: Spalva – vidinio ir išorinio lapo spalva skiriasi. Psl.Nr. 215-217
E130: Suma be PVM | F130: =IF((COUNT(C116:C129)<>COUNT(F116:F129)),"", SUM(F116:F129)) -> 51250 | G130: =IF((COUNT(C116:C129)<>COUNT(F116:F129)),"Neužpildytos visų objektų kainos", "") -> 
E131: PVM suma | F131: 2562.5
E132: Suma su PVM | F132: =IF(ISBLANK(F131), "", SUM(F130:F131)) -> 53812.5 | G132: Dalies biudžetas su PVM: 84700 Eur
A135: 39. DALIS | B135: APSAUGINIAI DANGALAI KLAVIATŪROMS
A137: Tiekėjo pasiūlymas:
A138: Nr. | B138: Pavadinimas | C138: Kiekis | D138: Mato vienetas | E138: Įkainis be PVM, Eur | F138: Suma be PVM, Eur | G138: Siūlomos prekės, pavadinimas, gamintojas | H138: Tiekėjo siūlomi parametrai ir parametrą pagrindžiančio dokumento puslapis
A139: 39. | B139: Apsauginiai dangalai klaviatūroms
A140: 39.1. | B140: Apsauginiai dangalai klaviatūroms | C140: 300 | D140: vnt. | E140: 7 | F140: =IF(ISBLANK(E140),"", PRODUCT(C140,E140)) -> 2100 | G140: Apsauginis dangalas klaviatūroms, vnt, Baake GmbH, Vokietija
A141: 39.1.1. | B141: Skirti klaviatūroms apsaugoti ir dengti: pagaminti iš skaidraus plastiko, kraštai turi būti sutvirtinti tampria guma. | H141: Skirti klaviatūroms apsaugoti ir dengti: pagaminti iš skaidraus plastiko, kraštai i sutvirtinti tampria guma.
A142: 39.1.2. | B142: Tinkami drėgnam valymui ir dezinfekcijai. | H142: Tinkami drėgnam valymui ir dezinfekcijai.
A143: 39.1.3. | B143: Atsparūs trinčiai, su galimybe naudoti iki 3 mėnesių. | H143: Atsparūs trinčiai, su galimybe naudoti iki 3 mėnesių.
A144: 39.1.4. | B144: Turi būti ženklinti CE ženklu (pagal medicinos priemonių (prietaisų) saugos technikos reglamentą). | H144: Ženklinti CE ženklu
A145: 39.1.5. | B145: Supakuoti po 1 vnt. | H145: Supakuoti po 1 vnt. Psl.Nr. 252-253
E146: Suma be PVM | F146: =IF((COUNT(C140:C145)<>COUNT(F140:F145)),"", SUM(F140:F145)) -> 2100 | G146: =IF((COUNT(C140:C145)<>COUNT(F140:F145)),"Neužpildytos visų objektų kainos", "") -> 
E147: PVM suma | F147: 441
E148: Suma su PVM | F148: =IF(ISBLANK(F147), "", SUM(F146:F147)) -> 2541 | G148: Dalies biudžetas su PVM: 3993 Eur

Sheet Subtiekėjai ir priedai
A2: Ūkio subjektai (įskaitant kvazisubtiekėjus - fiziniai asmenys, kuriuos ketinama įdarbinti pirkimo laimėjimo atveju), kurių pajėgumais tiekėjas remiasi, kad atitiktų keliamus kvalifikacijos reikalavimus:
A5: Pavadinimas* | C5: Kodas, adresas | F5: Perduodami įsipareigojimai | I5: Perduodamų įsipareigojimų dalis nuo visos pirkimo sutarties (Eur arba %) | K5: Kval. Reikalavimo Nr.
A9: Subtiekėjams / subteikėjams / subrangovams numatomos perduoti veiklos (privaloma nurodyti) ir šių ūkio subjektų pavadinimai (jei žinomi):
A11: Pavadinimas | C11: Kodas, adresas | F11: Perduodama veikla* | I11: Perduodamos veiklos dalis nuo visos pirkimo sutarties (Eur arba %)
A17: Kartu su pasiūlymu pateikiami šie dokumentai:
A19: Nr. | B19: Dokumento pavadinimas | H19: Dokumentas yra konfidencialus? Taip/Ne
A20: 1 | B20: Jungtinės veiklos kopija (jei taikoma)
A21: 2 | B21: Europos bendrasis viešųjų pirkimų dokumentas
A22: 3 | B22: Subtiekimo sutartis, ketinimų protokolas, preliminarios sutartys ar kiti dokumentai, patvirtinantys, kad laimėjus pirkimą tiekėjui bus prieinami kitų ūkio subjektų ištekliai (jei pasitelkiami kvalifikacijos atitikimui)
A23: 4 | B23: Pasiūlymo atitikimą pirkimo sąlygų techninei specifikacijai pagrindžiantys dokumentai
A29: Pasiūlyme nurodyta Prekės kaina, išskyrus jos sudedamąsias dalis, subtiekėjai, taip pat kita informacija, kuri teisės aktų nustatyta tvarka turi būti skelbiama arba kitokiu būdu viešai prieinama visuomenei, nėra laikoma konfidencialia informacija. Konfidencialią informaciją sudaro, visų pirma, komercinė (gamybinė) paslaptis ir konfidencialieji pasiūlymų aspektai. Informacija, kurią viešai skelbti įpareigoja Lietuvos Respublikos įstatymai, negali būti tiekėjo nurodoma kaip konfidenciali, todėl, tiekėjui nurodžius tokią informaciją kaip konfidencialią, perkančioji organizacija turi teisę ją skelbti. Jei tiekėjas nenurodo konfidencialios informacijos, laikoma, kad konfidencialios informacijos tiekėjo pasiūlyme nėra. Vadovaujantis Informacijos viešinimo Centrinėje viešųjų pirkimų informacinėje sistemoje tvarkos aprašu, patvirtintu Viešųjų pirkimų tarnybos direktoriaus 2017 m. birželio 19 d. įsakymu Nr. 1S-91 „Dėl Informacijos viešinimo Centrinėje viešųjų pirkimų informacinėje sistemoje tvarkos aprašo patvirtinimo“, perkančioji organizacija laimėjusio dalyvio pasiūlymą, išskyrus informaciją, kurią tiekėjas nurodė kaip konfidencialią, paskelbs CVP IS.
A32: Tiekėjo arba jo įgalioto asmens pareigų pavadinimas:
A34: Pasirašančio asmens vardas ir pavardė:
A81: 5450-1 2021-12-26 18:03:18
